[Event "Early-Titled-Tuesday-Blitz-April-23-2024"]
[Site "Chess.com"]
[Date "2024.04.23"]
[Round "9"]
[White "GM_dmitrij"]
[Black "Iball95"]
[Result "1-0"]
[WhiteElo "3006"]
[BlackElo "2856"]
[TimeControl "180+1"]
[EndTime "9:49:53 PDT"]
[Termination "GM_dmitrij won by checkmate"]

1. e4 {[%clk 0:03:00.9]} 1... c5 {[%clk 0:02:59.8]} 2. Nf3 {[%clk 0:03:00.4]}
2... e6 {[%clk 0:03:00.3]} 3. c3 {[%clk 0:03:00]} 3... d5 {[%clk 0:03:01]} 4.
exd5 {[%clk 0:03:00.9]} 4... exd5 {[%clk 0:03:01.9]} 5. d4 {[%clk 0:03:00.7]}
5... Nf6 {[%clk 0:03:02.5]} 6. Bd3 {[%clk 0:02:56.9]} 6... Be7 {[%clk 0:03:02]}
7. O-O {[%clk 0:02:55.3]} 7... O-O {[%clk 0:03:02.7]} 8. Re1 {[%clk 0:02:55.3]}
8... Nc6 {[%clk 0:03:02.8]} 9. dxc5 {[%clk 0:02:54.6]} 9... Bxc5 {[%clk
0:03:03.7]} 10. Nbd2 {[%clk 0:02:55.2]} 10... Bg4 {[%clk 0:03:03.8]} 11. Nb3
{[%clk 0:02:52.3]} 11... Bb6 {[%clk 0:03:04.1]} 12. h3 {[%clk 0:02:51.2]} 12...
Bh5 {[%clk 0:03:04.1]} 13. Bg5 {[%clk 0:02:39.9]} 13... h6 {[%clk 0:03:04.1]}
14. Bh4 {[%clk 0:02:40.3]} 14... Qd6 {[%clk 0:03:04.7]} 15. g4 {[%clk
0:02:14.8]} 15... Nxg4 {[%clk 0:01:37.1]} 16. hxg4 {[%clk 0:02:15.7]} 16... Bxg4
{[%clk 0:01:38]} 17. Kg2 {[%clk 0:02:15.7]} 17... Rae8 {[%clk 0:01:34.9]} 18.
Qd2 {[%clk 0:01:45]} 18... f5 {[%clk 0:00:40.3]} 19. Bg3 {[%clk 0:01:33.8]}
19... f4 {[%clk 0:00:40.2]} 20. Rxe8 {[%clk 0:01:31.5]} 20... Rxe8 {[%clk
0:00:07.3]} 21. Bxf4 {[%clk 0:01:31.8]} 21... Qd7 {[%clk 0:00:06.9]} 22. Nh2
{[%clk 0:01:20.7]} 22... Rf8 {[%clk 0:00:06.1]} 23. Bg3 {[%clk 0:01:12.1]} 23...
Bh3+ {[%clk 0:00:04.9]} 24. Kh1 {[%clk 0:01:12.2]} 24... Ne7 {[%clk 0:00:05.4]}
25. Nd4 {[%clk 0:01:06]} 25... Rf7 {[%clk 0:00:05.1]} 26. Re1 {[%clk 0:01:05.6]}
26... Nc6 {[%clk 0:00:04.8]} 27. Bc2 {[%clk 0:00:59.2]} 27... Ne7 {[%clk
0:00:04.8]} 28. Qd3 {[%clk 0:00:59.2]} 28... g6 {[%clk 0:00:04.5]} 29. Nhf3
{[%clk 0:00:51.7]} 29... Qg4 {[%clk 0:00:03.8]} 30. Ne5 {[%clk 0:00:44.5]} 30...
Qh5 {[%clk 0:00:04.4]} 31. Kg1 {[%clk 0:00:45.1]} 31... Rg7 {[%clk 0:00:03.9]}
32. Bd1 {[%clk 0:00:42.7]} 32... Qg5 {[%clk 0:00:03.7]} 33. Nef3 {[%clk
0:00:37.2]} 33... Qh5 {[%clk 0:00:03.9]} 34. Re5 {[%clk 0:00:30.6]} 34... Bf5
{[%clk 0:00:04.3]} 35. Qe3 {[%clk 0:00:22.6]} 35... Qg4 {[%clk 0:00:03.7]} 36.
Rxe7 {[%clk 0:00:21.5]} 36... Rxe7 {[%clk 0:00:04.6]} 37. Qxe7 {[%clk
0:00:22.3]} 37... h5 {[%clk 0:00:05.3]} 38. Nxf5 {[%clk 0:00:16.4]} 38... gxf5
{[%clk 0:00:05]} 39. Qg5+ {[%clk 0:00:16.3]} 39... Kf7 {[%clk 0:00:05.2]} 40.
Qxg4 {[%clk 0:00:16.7]} 40... hxg4 {[%clk 0:00:06.1]} 41. Nd4 {[%clk 0:00:17.3]}
41... Kf6 {[%clk 0:00:06.6]} 42. Bf4 {[%clk 0:00:17.2]} 42... Bc7 {[%clk
0:00:06.7]} 43. Bxc7 {[%clk 0:00:17.2]} 43... b5 {[%clk 0:00:07.6]} 44. Bf4
{[%clk 0:00:17.1]} 44... b4 {[%clk 0:00:08.5]} 45. cxb4 {[%clk 0:00:17.5]} 45...
a5 {[%clk 0:00:09.4]} 46. b5 {[%clk 0:00:18.1]} 46... g3 {[%clk 0:00:10.3]} 47.
fxg3 {[%clk 0:00:18.2]} 47... a4 {[%clk 0:00:11.1]} 48. b6 {[%clk 0:00:18.9]}
48... a3 {[%clk 0:00:12]} 49. bxa3 {[%clk 0:00:19.8]} 49... Ke7 {[%clk
0:00:12.6]} 50. b7 {[%clk 0:00:20.2]} 50... Kd7 {[%clk 0:00:13.5]} 51. b8=Q
{[%clk 0:00:19.8]} 51... Ke7 {[%clk 0:00:14.4]} 52. Qd6+ {[%clk 0:00:19.6]}
52... Kf7 {[%clk 0:00:15.1]} 53. Qe6+ {[%clk 0:00:20]} 53... Kg7 {[%clk
0:00:16]} 54. Nxf5+ {[%clk 0:00:20.6]} 54... Kh7 {[%clk 0:00:16.9]} 55. Qf7+
{[%clk 0:00:20.6]} 55... Kh8 {[%clk 0:00:17.8]} 56. Qg7# {[%clk 0:00:21.5]} 1-0

[Event "Early-Titled-Tuesday-Blitz-April-23-2024"]
[Site "Chess.com"]
[Date "2024.04.23"]
[Round "9"]
[White "Raskolnikov6"]
[Black "PonyQueen07"]
[Result "1-0"]
[WhiteElo "2393"]
[BlackElo "2216"]
[TimeControl "180+1"]
[EndTime "9:49:54 PDT"]
[Termination "Raskolnikov6 won by checkmate"]

1. c4 {[%clk 0:03:00.9]} 1... e5 {[%clk 0:02:57.5]} 2. g3 {[%clk 0:03:01.1]}
2... c6 {[%clk 0:02:55.5]} 3. Nf3 {[%clk 0:03:00.4]} 3... e4 {[%clk 0:02:46.9]}
4. Nd4 {[%clk 0:03:00.7]} 4... d5 {[%clk 0:02:44.9]} 5. cxd5 {[%clk 0:03:01.3]}
5... cxd5 {[%clk 0:02:44.2]} 6. Bg2 {[%clk 0:02:59.8]} 6... Bc5 {[%clk
0:02:40.7]} 7. Nb3 {[%clk 0:02:59.9]} 7... Bb6 {[%clk 0:02:37.5]} 8. d3 {[%clk
0:02:59.2]} 8... exd3 {[%clk 0:02:35.7]} 9. Qxd3 {[%clk 0:02:57.7]} 9... Nf6
{[%clk 0:02:35.8]} 10. Nc3 {[%clk 0:02:56.5]} 10... Be6 {[%clk 0:02:22.7]} 11.
O-O {[%clk 0:02:48.6]} 11... O-O {[%clk 0:02:20.7]} 12. a4 {[%clk 0:02:39.2]}
12... Nc6 {[%clk 0:02:17.8]} 13. a5 {[%clk 0:02:38.7]} 13... Bc7 {[%clk
0:02:15]} 14. Bg5 {[%clk 0:02:33.4]} 14... Ne5 {[%clk 0:02:02.8]} 15. Qd1 {[%clk
0:02:26]} 15... h6 {[%clk 0:01:59.6]} 16. Bxf6 {[%clk 0:02:14.1]} 16... Qxf6
{[%clk 0:01:58.6]} 17. Nxd5 {[%clk 0:02:14.8]} 17... Bxd5 {[%clk 0:01:58]} 18.
Qxd5 {[%clk 0:02:15]} 18... Rab8 {[%clk 0:01:53.6]} 19. Qc5 {[%clk 0:02:08]}
19... Bd6 {[%clk 0:01:44.7]} 20. Qxa7 {[%clk 0:02:04.9]} 20... Nc4 {[%clk
0:01:35.7]} 21. Qd4 {[%clk 0:01:42.4]} 21... Qxd4 {[%clk 0:01:33.2]} 22. Nxd4
{[%clk 0:01:42.3]} 22... Nxb2 {[%clk 0:01:30.6]} 23. Rfb1 {[%clk 0:01:40.6]}
23... Nc4 {[%clk 0:01:29]} 24. Rxb7 {[%clk 0:01:38.3]} 24... Be5 {[%clk
0:01:20]} 25. e3 {[%clk 0:01:37.8]} 25... Rxb7 {[%clk 0:00:46.6]} 26. Bxb7
{[%clk 0:01:36]} 26... Bb8 {[%clk 0:00:42.9]} 27. Nc6 {[%clk 0:01:33.5]} 27...
Bc7 {[%clk 0:00:40.4]} 28. a6 {[%clk 0:01:33.1]} 28... Nb6 {[%clk 0:00:31.9]}
29. a7 {[%clk 0:01:31.5]} 29... Kh7 {[%clk 0:00:28.3]} 30. a8=Q {[%clk
0:01:27.8]} 30... Nxa8 {[%clk 0:00:27.4]} 31. Rxa8 {[%clk 0:01:28.2]} 31... Rxa8
{[%clk 0:00:26.5]} 32. Bxa8 {[%clk 0:01:29.1]} 32... Bb6 {[%clk 0:00:24]} 33.
Kg2 {[%clk 0:01:28.8]} 33... f6 {[%clk 0:00:23.2]} 34. h4 {[%clk 0:01:26.8]}
34... Bc7 {[%clk 0:00:22.3]} 35. Ne7 {[%clk 0:01:26.6]} 35... Bd6 {[%clk
0:00:21.5]} 36. Nf5 {[%clk 0:01:26.2]} 36... Bf8 {[%clk 0:00:21.3]} 37. h5
{[%clk 0:01:26.7]} 37... Kg8 {[%clk 0:00:21.5]} 38. Bd5+ {[%clk 0:01:25.9]}
38... Kh8 {[%clk 0:00:21.8]} 39. Nh4 {[%clk 0:01:24.7]} 39... Kh7 {[%clk
0:00:21.9]} 40. Ng6 {[%clk 0:01:23.5]} 40... Bd6 {[%clk 0:00:17.8]} 41. Kf3
{[%clk 0:01:20.5]} 41... Bc5 {[%clk 0:00:15.2]} 42. Ke4 {[%clk 0:01:17.1]} 42...
Bb4 {[%clk 0:00:14.7]} 43. f4 {[%clk 0:01:07.2]} 43... Be1 {[%clk 0:00:13.6]}
44. g4 {[%clk 0:01:00.6]} 44... Bc3 {[%clk 0:00:07.4]} 45. Kf5 {[%clk
0:00:54.7]} 45... Bd4 {[%clk 0:00:03.7]} 46. Nf8+ {[%clk 0:00:52]} 46... Kh8
{[%clk 0:00:03.2]} 47. exd4 {[%clk 0:00:49.5]} 47... g5 {[%clk 0:00:02.6]} 48.
fxg5 {[%clk 0:00:46.4]} 48... fxg5 {[%clk 0:00:02.2]} 49. Be4 {[%clk 0:00:37.8]}
49... Kg7 {[%clk 0:00:03.1]} 50. d5 {[%clk 0:00:30]} 50... Kh8 {[%clk 0:00:04]}
51. Kg6 {[%clk 0:00:27.9]} 51... Kg8 {[%clk 0:00:03.9]} 52. Kxh6 {[%clk
0:00:27.2]} 52... Kh8 {[%clk 0:00:04.3]} 53. Kxg5 {[%clk 0:00:23.6]} 53... Kg8
{[%clk 0:00:04.3]} 54. d6 {[%clk 0:00:23.9]} 54... Kxf8 {[%clk 0:00:04.6]} 55.
Bg6 {[%clk 0:00:21.8]} 55... Kg8 {[%clk 0:00:02.9]} 56. d7 {[%clk 0:00:20.8]}
56... Kg7 {[%clk 0:00:03.3]} 57. h6+ {[%clk 0:00:20.1]} 57... Kf8 {[%clk
0:00:03.6]} 58. d8=Q# {[%clk 0:00:20.3]} 1-0

[Event "Early-Titled-Tuesday-Blitz-April-23-2024"]
[Site "Chess.com"]
[Date "2024.04.23"]
[Round "9"]
[White "esrosenberg"]
[Black "briesmas"]
[Result "1-0"]
[WhiteElo "2317"]
[BlackElo "2176"]
[TimeControl "180+1"]
[EndTime "9:49:56 PDT"]
[Termination "esrosenberg won on time"]

1. e4 {[%clk 0:03:00.9]} 1... c5 {[%clk 0:02:59.3]} 2. Nc3 {[%clk 0:02:59.2]}
2... d6 {[%clk 0:02:57.3]} 3. f4 {[%clk 0:02:58.6]} 3... g6 {[%clk 0:02:56.5]}
4. Nf3 {[%clk 0:02:58.1]} 4... Bg7 {[%clk 0:02:54.7]} 5. Bb5+ {[%clk 0:02:57.4]}
5... Bd7 {[%clk 0:02:52]} 6. a4 {[%clk 0:02:57]} 6... Nc6 {[%clk 0:02:51.2]} 7.
d3 {[%clk 0:02:45.7]} 7... e6 {[%clk 0:02:50.2]} 8. Bxc6 {[%clk 0:02:37.8]} 8...
Bxc6 {[%clk 0:02:49.3]} 9. O-O {[%clk 0:02:38.5]} 9... Ne7 {[%clk 0:02:48.5]}
10. Qe1 {[%clk 0:02:32.9]} 10... d5 {[%clk 0:02:47]} 11. exd5 {[%clk 0:02:15.7]}
11... Nxd5 {[%clk 0:02:47.9]} 12. Ne5 {[%clk 0:02:09.4]} 12... Nxc3 {[%clk
0:02:39.8]} 13. bxc3 {[%clk 0:02:03.6]} 13... O-O {[%clk 0:02:27.1]} 14. Bd2
{[%clk 0:01:45.3]} 14... Qd5 {[%clk 0:02:21.9]} 15. Qg3 {[%clk 0:01:37.3]} 15...
f6 {[%clk 0:02:14.2]} 16. Nxc6 {[%clk 0:01:34.7]} 16... Qxc6 {[%clk 0:02:15.1]}
17. c4 {[%clk 0:01:30]} 17... Rae8 {[%clk 0:02:11]} 18. Bc3 {[%clk 0:01:23.6]}
18... Qc7 {[%clk 0:01:59.3]} 19. Rfe1 {[%clk 0:01:17.9]} 19... e5 {[%clk
0:01:52]} 20. fxe5 {[%clk 0:01:16.1]} 20... fxe5 {[%clk 0:01:52.9]} 21. Re4
{[%clk 0:01:14]} 21... Rf5 {[%clk 0:01:52.9]} 22. Rae1 {[%clk 0:01:12]} 22...
Ref8 {[%clk 0:01:53]} 23. Qe3 {[%clk 0:01:05.6]} 23... Qf7 {[%clk 0:01:51.2]}
24. h3 {[%clk 0:01:00.3]} 24... Rf1+ {[%clk 0:01:44.5]} 25. Rxf1 {[%clk
0:00:54.4]} 25... Qxf1+ {[%clk 0:01:45.4]} 26. Kh2 {[%clk 0:00:53.3]} 26... Rf2
{[%clk 0:01:12.1]} 27. Qg3 {[%clk 0:00:51.1]} 27... Rxc2 {[%clk 0:00:33.2]} 28.
Bxe5 {[%clk 0:00:42.5]} 28... Rc1 {[%clk 0:00:32.4]} 29. Qf3 {[%clk 0:00:30.1]}
29... Qg1+ {[%clk 0:00:26.6]} 30. Kg3 {[%clk 0:00:28.9]} 30... Rf1 {[%clk
0:00:26.3]} 31. Qe3 {[%clk 0:00:20.6]} 31... Qxe3+ {[%clk 0:00:10.9]} 32. Rxe3
{[%clk 0:00:21.5]} 32... Bh6 {[%clk 0:00:10.2]} 33. Rf3 {[%clk 0:00:18.7]} 33...
Rxf3+ {[%clk 0:00:08.9]} 34. Kxf3 {[%clk 0:00:17.9]} 34... a6 {[%clk 0:00:06.5]}
35. Ke4 {[%clk 0:00:17.8]} 35... Kf7 {[%clk 0:00:06]} 36. Kd5 {[%clk 0:00:17.7]}
36... Be3 {[%clk 0:00:06.2]} 37. Bd6 {[%clk 0:00:17.3]} 37... b6 {[%clk
0:00:03.6]} 38. Kc6 {[%clk 0:00:15.8]} 38... Ke6 {[%clk 0:00:03.9]} 39. Bc7
{[%clk 0:00:14.9]} 39... Bd4 {[%clk 0:00:01.8]} 40. Bxb6 {[%clk 0:00:14.8]}
40... Bc3 {[%clk 0:00:01.9]} 41. Bxc5 {[%clk 0:00:14.7]} 41... Ke5 {[%clk
0:00:02.4]} 42. d4+ {[%clk 0:00:13.6]} 42... Ke4 {[%clk 0:00:01.5]} 43. d5
{[%clk 0:00:12.8]} 43... Kd3 {[%clk 0:00:01.9]} 44. d6 {[%clk 0:00:12.9]} 44...
Kxc4 {[%clk 0:00:01.9]} 45. d7 {[%clk 0:00:12.7]} 45... Bf6 {[%clk 0:00:02.4]}
46. Bb6 {[%clk 0:00:11.6]} 46... Kb4 {[%clk 0:00:01.5]} 47. a5 {[%clk
0:00:12.2]} 47... Ka4 {[%clk 0:00:01.2]} 48. Kb7 {[%clk 0:00:11.6]} 48... Kb4
{[%clk 0:00:01.6]} 49. Kxa6 {[%clk 0:00:11.6]} 49... Kc4 {[%clk 0:00:01.8]} 50.
Kb7 {[%clk 0:00:11.1]} 50... Kd5 {[%clk 0:00:02.5]} 51. d8=Q+ {[%clk 0:00:09.6]}
51... Bxd8 {[%clk 0:00:02.4]} 52. Bxd8 {[%clk 0:00:10.5]} 52... h6 {[%clk
0:00:02.5]} 53. a6 {[%clk 0:00:10.9]} 1-0

[Event "Early-Titled-Tuesday-Blitz-April-23-2024"]
[Site "Chess.com"]
[Date "2024.04.23"]
[Round "9"]
[White "Ziyamammadov"]
[Black "martinmena"]
[Result "1-0"]
[WhiteElo "1964"]
[BlackElo "2170"]
[TimeControl "180+1"]
[EndTime "9:49:58 PDT"]
[Termination "Ziyamammadov won on time"]

1. e4 {[%clk 0:03:00.9]} 1... c6 {[%clk 0:02:57.1]} 2. d4 {[%clk 0:02:54.2]}
2... d5 {[%clk 0:02:58]} 3. exd5 {[%clk 0:02:54.9]} 3... cxd5 {[%clk 0:02:58.9]}
4. c4 {[%clk 0:02:55.5]} 4... f6 {[%clk 0:02:58.9]} 5. Nc3 {[%clk 0:02:56.4]}
5... g6 {[%clk 0:02:38.8]} 6. cxd5 {[%clk 0:02:52.4]} 6... Bg7 {[%clk
0:02:36.7]} 7. Bc4 {[%clk 0:02:48.3]} 7... a6 {[%clk 0:02:32.3]} 8. Nf3 {[%clk
0:02:41.8]} 8... b5 {[%clk 0:02:32.2]} 9. Bb3 {[%clk 0:02:39]} 9... Bb7 {[%clk
0:02:20.9]} 10. O-O {[%clk 0:02:33.4]} 10... Nd7 {[%clk 0:02:13.1]} 11. Re1
{[%clk 0:02:31.1]} 11... Nb6 {[%clk 0:02:12.2]} 12. Bf4 {[%clk 0:01:31.1]} 12...
Nxd5 {[%clk 0:01:58]} 13. Nxd5 {[%clk 0:01:22.6]} 13... Bxd5 {[%clk 0:01:58.9]}
14. Bxd5 {[%clk 0:01:02.8]} 14... Qxd5 {[%clk 0:01:59.8]} 15. Qc2 {[%clk
0:00:47]} 15... g5 {[%clk 0:01:42.4]} 16. Bg3 {[%clk 0:00:35.9]} 16... Nh6
{[%clk 0:01:40.6]} 17. Rac1 {[%clk 0:00:30.6]} 17... Nf5 {[%clk 0:01:31.9]} 18.
Qc7 {[%clk 0:00:20.1]} 18... O-O {[%clk 0:01:22.3]} 19. Qc5 {[%clk 0:00:20]}
19... Qxc5 {[%clk 0:01:14.5]} 20. dxc5 {[%clk 0:00:20.9]} 20... e5 {[%clk
0:01:03]} 21. c6 {[%clk 0:00:18.6]} 21... Rac8 {[%clk 0:01:00.3]} 22. Nd2 {[%clk
0:00:17.4]} 22... Rf7 {[%clk 0:00:54.5]} 23. Ne4 {[%clk 0:00:15.9]} 23... Rfc7
{[%clk 0:00:51.3]} 24. Red1 {[%clk 0:00:11.7]} 24... Rxc6 {[%clk 0:00:49.3]} 25.
Rxc6 {[%clk 0:00:09.3]} 25... Rxc6 {[%clk 0:00:49.3]} 26. f3 {[%clk 0:00:10.2]}
26... Nxg3 {[%clk 0:00:20.9]} 27. hxg3 {[%clk 0:00:08.8]} 27... Kf7 {[%clk
0:00:20.4]} 28. g4 {[%clk 0:00:08.9]} 28... Kg6 {[%clk 0:00:20.1]} 29. Kh2
{[%clk 0:00:07.8]} 29... h5 {[%clk 0:00:19.1]} 30. Kg3 {[%clk 0:00:07.7]} 30...
hxg4 {[%clk 0:00:17.7]} 31. fxg4 {[%clk 0:00:08.6]} 31... f5 {[%clk 0:00:15.5]}
32. Rd6+ {[%clk 0:00:08.7]} 32... Rxd6 {[%clk 0:00:14.9]} 33. Nxd6 {[%clk
0:00:09.6]} 33... f4+ {[%clk 0:00:13]} 34. Kf3 {[%clk 0:00:09.8]} 34... e4+
{[%clk 0:00:13.4]} 35. Kxe4 {[%clk 0:00:10.7]} 35... Bxb2 {[%clk 0:00:12.8]} 36.
Nf5 {[%clk 0:00:09]} 36... Bf6 {[%clk 0:00:09.6]} 37. Nd6 {[%clk 0:00:09.1]}
37... b4 {[%clk 0:00:08.6]} 38. Nc4 {[%clk 0:00:08.9]} 38... Bd8 {[%clk
0:00:05.9]} 39. Ne5+ {[%clk 0:00:08.7]} 39... Kf6 {[%clk 0:00:04]} 40. Nc6
{[%clk 0:00:09.6]} 40... Be7 {[%clk 0:00:04]} 41. Nd4 {[%clk 0:00:10.2]} 41...
Kg6 {[%clk 0:00:03.2]} 42. Nc6 {[%clk 0:00:09.9]} 42... Bc5 {[%clk 0:00:03.6]}
43. Kd5 {[%clk 0:00:10.1]} 43... Bf8 {[%clk 0:00:03.5]} 44. Kc4 {[%clk
0:00:10.1]} 44... Bg7 {[%clk 0:00:01.9]} 45. Nxb4 {[%clk 0:00:09.7]} 45... Kf6
{[%clk 0:00:02]} 46. Nd5+ {[%clk 0:00:10.6]} 46... Ke5 {[%clk 0:00:02.4]} 47.
Nc7 {[%clk 0:00:10.2]} 47... Ke4 {[%clk 0:00:01.8]} 48. Ne6 {[%clk 0:00:10.8]}
48... Bf6 {[%clk 0:00:01]} 49. Nc5+ {[%clk 0:00:10]} 49... Ke3 {[%clk
0:00:01.5]} 50. Nd7 {[%clk 0:00:10.6]} 1-0

[Event "Early-Titled-Tuesday-Blitz-April-23-2024"]
[Site "Chess.com"]
[Date "2024.04.23"]
[Round "9"]
[White "Happy1712Drummer"]
[Black "Louis-Paulsen-Fan"]
[Result "1-0"]
[WhiteElo "2502"]
[BlackElo "2345"]
[TimeControl "180+1"]
[EndTime "9:49:59 PDT"]
[Termination "Happy1712Drummer won on time"]

1. e4 {[%clk 0:03:00.6]} 1... Nf6 {[%clk 0:02:59.7]} 2. Nc3 {[%clk 0:02:58.5]}
2... e5 {[%clk 0:02:59.3]} 3. Nf3 {[%clk 0:02:57.2]} 3... Nc6 {[%clk 0:02:59.4]}
4. d4 {[%clk 0:02:56.9]} 4... Bb4 {[%clk 0:02:57.3]} 5. d5 {[%clk 0:02:38.3]}
5... Ne7 {[%clk 0:02:56.9]} 6. Bd3 {[%clk 0:02:19.4]} 6... d6 {[%clk 0:02:56.4]}
7. O-O {[%clk 0:02:20]} 7... O-O {[%clk 0:02:54.3]} 8. Ne2 {[%clk 0:02:20]} 8...
c6 {[%clk 0:02:50.4]} 9. c3 {[%clk 0:02:16.9]} 9... Ba5 {[%clk 0:02:48.8]} 10.
b4 {[%clk 0:02:17.8]} 10... Bb6 {[%clk 0:02:46.7]} 11. c4 {[%clk 0:02:15.4]}
11... cxd5 {[%clk 0:02:42.3]} 12. cxd5 {[%clk 0:02:16.3]} 12... Nexd5 {[%clk
0:02:36.4]} 13. exd5 {[%clk 0:02:11.8]} 13... e4 {[%clk 0:02:36.8]} 14. Ng3
{[%clk 0:01:53.6]} 14... exd3 {[%clk 0:02:29.6]} 15. Qxd3 {[%clk 0:01:54.5]}
15... Bg4 {[%clk 0:02:15]} 16. Bb2 {[%clk 0:01:52]} 16... Re8 {[%clk 0:02:04.4]}
17. h3 {[%clk 0:01:48.2]} 17... Bd7 {[%clk 0:01:48.7]} 18. a4 {[%clk 0:01:31.9]}
18... a6 {[%clk 0:01:45.5]} 19. Rfd1 {[%clk 0:01:06.4]} 19... Rc8 {[%clk
0:01:45.1]} 20. Nd4 {[%clk 0:01:04.5]} 20... Bxd4 {[%clk 0:01:29.5]} 21. Qxd4
{[%clk 0:01:05.4]} 21... Qe7 {[%clk 0:01:22.2]} 22. Kh2 {[%clk 0:01:01.3]} 22...
Qe5 {[%clk 0:01:15.6]} 23. Qd2 {[%clk 0:00:59.6]} 23... Qe7 {[%clk 0:00:49.5]}
24. Re1 {[%clk 0:00:55.5]} 24... Qd8 {[%clk 0:00:49.7]} 25. Qg5 {[%clk
0:00:50.9]} 25... h6 {[%clk 0:00:42.2]} 26. Qf4 {[%clk 0:00:35.2]} 26... Rxe1
{[%clk 0:00:37.3]} 27. Rxe1 {[%clk 0:00:33.4]} 27... Be8 {[%clk 0:00:35.6]} 28.
Nf5 {[%clk 0:00:30.2]} 28... Rc2 {[%clk 0:00:25.5]} 29. Nxh6+ {[%clk 0:00:23.6]}
29... Kf8 {[%clk 0:00:14.7]} 30. Bxf6 {[%clk 0:00:17]} 30... Qxf6 {[%clk
0:00:14.8]} 31. Qxf6 {[%clk 0:00:17.1]} 31... gxf6 {[%clk 0:00:15.6]} 32. Nf5
{[%clk 0:00:17.8]} 32... Rd2 {[%clk 0:00:13.7]} 33. Nxd6 {[%clk 0:00:17.1]}
33... Bd7 {[%clk 0:00:14]} 34. Nxb7 {[%clk 0:00:17.3]} 34... Rxd5 {[%clk
0:00:13.5]} 35. Nc5 {[%clk 0:00:17.6]} 35... Bc6 {[%clk 0:00:11.3]} 36. Nxa6
{[%clk 0:00:16.5]} 36... Bxa4 {[%clk 0:00:10.6]} 37. Nc5 {[%clk 0:00:14.9]}
37... Bb5 {[%clk 0:00:10.8]} 38. Rb1 {[%clk 0:00:14]} 38... Rd2 {[%clk
0:00:10.6]} 39. Kg3 {[%clk 0:00:14.1]} 39... Ke7 {[%clk 0:00:10.2]} 40. Re1+
{[%clk 0:00:12.3]} 40... Kf8 {[%clk 0:00:09.8]} 41. Re4 {[%clk 0:00:10.2]} 41...
Kg7 {[%clk 0:00:08.7]} 42. Rg4+ {[%clk 0:00:09.1]} 42... Kf8 {[%clk 0:00:08.6]}
43. Ne4 {[%clk 0:00:09.5]} 43... Rd3+ {[%clk 0:00:04.6]} 44. f3 {[%clk
0:00:06.7]} 44... Rb3 {[%clk 0:00:03]} 45. Nxf6 {[%clk 0:00:05.5]} 45... Rb2
{[%clk 0:00:03.2]} 46. Rd4 {[%clk 0:00:02.6]} 46... Bf1 {[%clk 0:00:01.5]} 47.
Nd7+ {[%clk 0:00:03.1]} 47... Ke7 {[%clk 0:00:01.6]} 48. Ne5 {[%clk 0:00:03.5]}
1-0

[Event "Early-Titled-Tuesday-Blitz-April-23-2024"]
[Site "Chess.com"]
[Date "2024.04.23"]
[Round "9"]
[White "AsaHoffmann"]
[Black "Navyblue1"]
[Result "0-1"]
[WhiteElo "2382"]
[BlackElo "2259"]
[TimeControl "180+1"]
[EndTime "9:50:00 PDT"]
[Termination "Navyblue1 won on time"]

1. d4 {[%clk 0:02:35.1]} 1... Nf6 {[%clk 0:02:56.5]} 2. Bg5 {[%clk 0:02:30.1]}
2... Ne4 {[%clk 0:02:54]} 3. Bf4 {[%clk 0:02:29.5]} 3... c5 {[%clk 0:02:53.5]}
4. f3 {[%clk 0:02:26.3]} 4... Qa5+ {[%clk 0:02:53]} 5. c3 {[%clk 0:02:25.8]}
5... Nf6 {[%clk 0:02:52.9]} 6. d5 {[%clk 0:02:25.8]} 6... d6 {[%clk 0:02:48.4]}
7. e4 {[%clk 0:02:24.5]} 7... g6 {[%clk 0:02:44.5]} 8. Qd2 {[%clk 0:02:23.8]}
8... Bg7 {[%clk 0:02:42.4]} 9. Na3 {[%clk 0:02:23.5]} 9... Qc7 {[%clk 0:02:33]}
10. Bh6 {[%clk 0:02:15.5]} 10... O-O {[%clk 0:02:31.4]} 11. h4 {[%clk
0:02:13.9]} 11... a6 {[%clk 0:02:13.3]} 12. h5 {[%clk 0:02:13.6]} 12... Nxh5
{[%clk 0:01:48.2]} 13. Rxh5 {[%clk 0:02:12.6]} 13... Bxh6 {[%clk 0:01:43.7]} 14.
Rxh6 {[%clk 0:02:11]} 14... e6 {[%clk 0:01:40]} 15. Nh3 {[%clk 0:01:59.1]} 15...
f6 {[%clk 0:01:37.3]} 16. dxe6 {[%clk 0:01:55.6]} 16... Bxe6 {[%clk 0:01:38.2]}
17. Bc4 {[%clk 0:01:52.8]} 17... Qf7 {[%clk 0:01:30.5]} 18. Bxe6 {[%clk
0:01:50.5]} 18... Qxe6 {[%clk 0:01:31.4]} 19. Nf4 {[%clk 0:01:45.6]} 19... Qf7
{[%clk 0:01:29.3]} 20. Qd5 {[%clk 0:01:43]} 20... Nc6 {[%clk 0:01:26.8]} 21. Nc4
{[%clk 0:01:41.9]} 21... Rad8 {[%clk 0:01:23.1]} 22. O-O-O {[%clk 0:01:41.5]}
22... Qxd5 {[%clk 0:01:15.1]} 23. Rxd5 {[%clk 0:01:37.1]} 23... Kg7 {[%clk
0:01:12.4]} 24. Rh1 {[%clk 0:01:34.9]} 24... Ne5 {[%clk 0:01:04.4]} 25. Ne6+
{[%clk 0:01:32]} 25... Kg8 {[%clk 0:00:56.7]} 26. Nxf8 {[%clk 0:01:28.3]} 26...
Nxc4 {[%clk 0:00:56.8]} 27. Nxh7 {[%clk 0:01:25.6]} 27... Kg7 {[%clk 0:00:54.4]}
28. b3 {[%clk 0:01:06.5]} 28... Ne5 {[%clk 0:00:46.5]} 29. f4 {[%clk 0:01:04.5]}
29... Nf7 {[%clk 0:00:43.7]} 30. g4 {[%clk 0:01:00.1]} 30... Rh8 {[%clk
0:00:41.4]} 31. g5 {[%clk 0:00:58.1]} 31... fxg5 {[%clk 0:00:35.8]} 32. fxg5
{[%clk 0:00:54.7]} 32... Rxh7 {[%clk 0:00:32.3]} 33. Rxh7+ {[%clk 0:00:52.7]}
33... Kxh7 {[%clk 0:00:33.2]} 34. Kd2 {[%clk 0:00:51.9]} 34... Kg7 {[%clk
0:00:33.5]} 35. a4 {[%clk 0:00:51.4]} 35... b6 {[%clk 0:00:25]} 36. b4 {[%clk
0:00:49.9]} 36... Kf8 {[%clk 0:00:24.1]} 37. bxc5 {[%clk 0:00:46.8]} 37... bxc5
{[%clk 0:00:23.2]} 38. Kd3 {[%clk 0:00:44.7]} 38... Ke7 {[%clk 0:00:23]} 39. Kc4
{[%clk 0:00:41.1]} 39... Ke6 {[%clk 0:00:19.5]} 40. Kd3 {[%clk 0:00:23.3]} 40...
Ne5+ {[%clk 0:00:18.5]} 41. Ke3 {[%clk 0:00:22.3]} 41... Nc4+ {[%clk 0:00:16.8]}
42. Kf4 {[%clk 0:00:21]} 42... Nb6 {[%clk 0:00:16.2]} 43. Rd1 {[%clk 0:00:16.5]}
43... Nxa4 {[%clk 0:00:16.2]} 44. Ra1 {[%clk 0:00:15.6]} 44... Nxc3 {[%clk
0:00:16.2]} 45. Rxa6 {[%clk 0:00:15.4]} 45... Ne2+ {[%clk 0:00:16.2]} 46. Ke3
{[%clk 0:00:15.2]} 46... Nd4 {[%clk 0:00:15]} 47. Ra7 {[%clk 0:00:14.5]} 47...
Nc6 {[%clk 0:00:14.1]} 48. Rg7 {[%clk 0:00:13.7]} 48... Ne5 {[%clk 0:00:14.3]}
49. Kf4 {[%clk 0:00:08.5]} 49... Nd3+ {[%clk 0:00:13.6]} 50. Kg4 {[%clk
0:00:07.5]} 50... Ne5+ {[%clk 0:00:13.6]} 51. Kg3 {[%clk 0:00:07.7]} 51... d5
{[%clk 0:00:13]} 52. Kf4 {[%clk 0:00:05]} 52... d4 {[%clk 0:00:12.6]} 53. Rg8
{[%clk 0:00:03.6]} 53... Nd3+ {[%clk 0:00:12]} 54. Kf3 {[%clk 0:00:03.3]} 54...
Ne5+ {[%clk 0:00:12.1]} 55. Ke2 {[%clk 0:00:03.2]} 55... c4 {[%clk 0:00:11.5]}
0-1